bitfinex-derivatives/quotes_BTCF0:USTF0_20240910
["timestamp","ask_amount","ask_price","bid_price","bid_amount"]
[1725986639304,0.01909264,56865.0,56864.0,0.088324]
[1725986639512,0.003,56865.0,56864.0,0.088324]
[1725986640109,0.007,56865.0,56864.0,0.088324]
[1725986640624,0.007,56865.0,56864.0,0.14071692]
[1725986641112,0.01820183,56869.0,56864.0,0.088324]
[1725986641310,0.087904,56877.0,56874.0,0.087909]
[1725986641502,0.087904,56877.0,56876.0,0.0004]
[1725986641706,0.087904,56877.0,56874.0,0.087909]
[1725986641914,0.2,56878.0,56874.0,0.087909]
[1725986641915,0.0004,56875.0,56874.0,0.087909]
[1725986642616,0.0004,56875.0,56874.0,0.13990193]
[1725986643015,0.0004,56875.0,56874.0,0.087909]
[1725986643210,0.0004,56875.0,56869.0,0.13769682]
[1725986643211,0.087909,56874.0,56873.0,0.0520198]
[1725986643411,0.087909,56874.0,56868.0,0.08769682]
[1725986643412,0.17582,56873.0,56872.0,0.0520198]
[1725986643621,0.14161,56873.0,56868.0,0.0524198]
[1725986643911,0.0004,56869.0,56868.0,0.0524198]
[1725986644116,0.2,56871.0,56868.0,0.0524198]
[1725986644308,0.087915,56870.0,56869.0,0.0520198]
[1725986644902,0.087916,56869.0,56868.0,0.0524198]
[1725986645103,0.141316,56869.0,56868.0,0.0524198]
[1725986645305,0.141316,56869.0,56868.0,0.0004]
[1725986645715,0.141316,56869.0,56868.0,0.0034]
[1725986646218,0.668836,56869.0,56864.0,0.08729682]
[1725986646423,0.087933,56858.0,56857.0,0.0521359]
[1725986646716,0.087938,56855.0,56854.0,0.0533359]
[1725986647014,0.088338,56855.0,56854.0,0.0533359]
[1725986647214,0.087938,56855.0,56854.0,0.0012]
[1725986648213,0.30614554,56858.0,56850.0,0.08729682]
[1725986648522,0.1052,56854.0,56853.0,0.06963863]
[1725986648717,0.19314,56854.0,56853.0,0.06962034]
[1725986649112,0.087941,56853.0,56852.0,0.06962034]
[1725986649307,0.0004,56853.0,56849.0,0.05223871]
[1725986649512,0.087949,56848.0,56847.0,0.06962034]
[1725986649709,0.088349,56848.0,56847.0,0.06962034]
[1725986650222,0.0004,56848.0,56845.0,0.087953]
[1725986650427,0.0004,56846.0,56845.0,0.087953]
[1725986651119,0.0004,56846.0,56844.0,0.08729682]
[1725986651315,0.0004,56845.0,56843.0,0.08729682]
[1725986651521,0.0004,56844.0,56843.0,0.08729682]
[1725986651825,0.0004,56845.0,56843.0,0.21555766]
[1725986652115,0.0004,56845.0,56843.0,0.08729682]
[1725986652318,0.0004,56845.0,56844.0,0.0004]
[1725986653417,0.001,56845.0,56844.0,0.088355]
[1725986653624,0.001,56845.0,56844.0,0.17565182]
[1725986653827,0.002,56845.0,56844.0,0.17565182]
[1725986654321,0.002,56845.0,56844.0,1.54637374]
[1725986654516,0.01863879,56848.0,56847.0,0.08795]
[1725986654711,0.087947,56850.0,56847.0,0.21566573]
[1725986655024,0.087947,56850.0,56849.0,0.0004]
[1725986655214,0.087947,56850.0,56847.0,0.0004]
[1725986655521,0.087947,56850.0,56847.0,0.08835]
[1725986655522,0.0004,56848.0,56847.0,0.08835]
[1725986656225,0.0004,56848.0,56847.0,0.21642409]
[1725986656521,0.001,56848.0,56847.0,0.21942409]
[1725986657022,0.002,56848.0,56847.0,0.22542409]
[1725986657624,0.002,56848.0,56847.0,0.22782409]
[1725986657824,0.002,56848.0,56847.0,0.2280186]
[1725986659112,0.089949,56848.0,56847.0,0.2280186]
[1725986659923,0.002,56848.0,56847.0,0.2280186]
[1725986660316,0.089949,56848.0,56847.0,0.2280186]
[1725986661113,0.089949,56848.0,56847.0,0.33243316]
[1725986661319,0.089949,56848.0,56847.0,0.2280186]
[1725986661521,0.002,56848.0,56847.0,0.33243316]
[1725986661920,0.002,56848.0,56847.0,0.2280186]
[1725986662123,0.002,56848.0,56847.0,0.33243316]
[1725986662321,0.002,56848.0,56847.0,0.2280186]
[1725986662720,0.002,56848.0,56847.0,0.22833225]
[1725986663431,0.089949,56848.0,56847.0,0.22833225]
[1725986663631,0.177898,56848.0,56847.0,0.14038225]
[1725986663928,0.089949,56848.0,56847.0,0.14038225]
[1725986665425,0.089949,56848.0,56847.0,0.22740192]
[1725986665633,0.089949,56848.0,56847.0,0.22740077]
[1725986666332,0.289949,56848.0,56847.0,0.0118]
[1725986668943,0.289949,56848.0,56847.0,0.09881852]
[1725986669321,0.289949,56848.0,56847.0,0.0118]
[1725986669727,0.002,56848.0,56847.0,0.09975]
[1725986670335,0.289949,56848.0,56847.0,0.0118]
[1725986672341,0.377898,56848.0,56847.0,0.0118]
[1725986673428,0.289949,56848.0,56847.0,0.0118]
[1725986673627,0.377898,56848.0,56847.0,0.0118]
[1725986674235,0.377898,56848.0,56847.0,0.08148259]
[1725986674434,0.377898,56848.0,56847.0,0.0118]
[1725986675331,0.377898,56848.0,56847.0,0.09881852]
[1725986675641,0.377898,56848.0,56847.0,0.22783463]
[1725986676038,0.002,56848.0,56847.0,0.14081611]
[1725986676234,0.087927,56862.0,56847.0,0.14081611]
[1725986676235,0.087925,56864.0,56849.0,0.087947]
[1725986676534,0.092017,56869.0,56864.0,0.087923]
[1725986676739,0.01855307,56872.0,56870.0,0.087915]
[1725986676937,0.2,56876.0,56871.0,0.21550355]
[1725986677126,0.2,56876.0,56872.0,0.30340925]
[1725986677329,0.2,56876.0,56875.0,0.069684]
[1725986677330,0.21902175,56876.0,56875.0,0.069684]
[1725986677527,0.2,56876.0,56875.0,0.069684]
[1725986677732,0.287906,56876.0,56872.0,0.0872914]
[1725986677943,0.0008,56873.0,56872.0,0.0872914]
[1725986678235,0.0008,56873.0,56872.0,0.087912]
[1725986679140,0.28871,56873.0,56872.0,0.001]
[1725986679536,0.28871,56873.0,56872.0,0.05314298]
[1725986680139,0.28871,56873.0,56872.0,0.001]
[1725986680440,0.28871,56873.0,56872.0,0.003]
[1725986680838,0.087912,56872.0,56866.0,0.05211638]
[1725986681038,0.087923,56865.0,56864.0,0.05211638]
[1725986681243,0.087923,56865.0,56862.0,0.0521312]
[1725986681244,0.087926,56863.0,56862.0,0.0521312]
[1725986681444,0.288726,56863.0,56862.0,0.0521312]
[1725986681632,0.287926,56863.0,56862.0,0.0521312]
[1725986681949,0.24393103,56863.0,56861.0,0.0521312]
[1725986682131,0.24393103,56863.0,56862.0,0.0521312]
[1725986682337,0.24393103,56863.0,56861.0,0.0521312]
[1725986682538,0.24393103,56863.0,56862.0,0.005]
[1725986683038,0.24493103,56863.0,56862.0,0.009]
[1725986683436,0.24393103,56863.0,56862.0,0.005]
[1725986683635,0.201,56863.0,56862.0,0.005]
[1725986683934,0.201,56863.0,56862.0,0.0521312]
[1725986683935,0.001,56863.0,56862.0,0.0521312]
[1725986684251,0.001,56863.0,56862.0,0.05211938]
[1725986684628,0.001,56863.0,56862.0,0.05611938]
[1725986684929,0.001,56863.0,56862.0,0.091927]
[1725986685330,0.0008,56867.0,56862.0,0.091927]
[1725986685546,0.0008,56867.0,56865.0,0.0521069]
[1725986685746,0.0008,56867.0,56866.0,0.087921]
[1725986685934,0.01929089,56867.0,56866.0,0.087921]
[1725986686137,0.087918,56868.0,56864.0,0.26956712]
[1725986686335,0.087913,56872.0,56867.0,0.25209954]
[1725986686632,0.04305648,56871.0,56870.0,0.087914]
[1725986686938,0.14002744,56871.0,56870.0,0.287914]
[1725986687143,0.18308392,56871.0,56870.0,0.287914]
[1725986687437,0.12249321,56871.0,56870.0,0.287915]
[1725986687640,0.12249286,56871.0,56870.0,0.287915]
[1725986688046,0.12249286,56872.0,56871.0,0.087913]
[1725986688243,0.087908,56875.0,56872.0,0.087912]
[1725986688244,0.12249286,56873.0,56872.0,0.087912]
[1725986688445,0.12249286,56873.0,56872.0,0.140412]
[1725986688847,0.12249286,56874.0,56873.0,0.08791]
[1725986689243,0.12249286,56875.0,56874.0,0.087909]
[1725986689437,0.12249286,56876.0,56875.0,0.087907]
[1725986690543,0.12249286,56876.0,56875.0,0.091907]
[1725986690850,0.12249286,56877.0,56876.0,0.087906]
[1725986691043,0.14156825,56878.0,56877.0,0.087904]
[1725986691247,0.01907539,56878.0,56877.0,0.087904]
[1725986691458,0.01907539,56878.0,56875.0,0.004]
[1725986691459,0.087902,56879.0,56878.0,0.087903]
[1725986691854,0.12232662,56881.0,56880.0,0.087899]
[1725986692036,0.12232566,56883.0,56882.0,0.087896]
[1725986692240,0.087891,56886.0,56884.0,0.087892]
[1725986692446,0.087891,56886.0,56885.0,0.2]
[1725986692652,0.087891,56886.0,56885.0,0.287892]
[1725986693553,0.094891,56886.0,56885.0,0.287892]
[1725986693851,0.094891,56886.0,56885.0,0.288292]
[1725986694146,0.007,56886.0,56885.0,0.288292]
[1725986694941,0.09489,56886.0,56885.0,0.289292]
[1725986695243,0.087888,56888.0,56887.0,0.087889]
[1725986695438,0.10631736,56888.0,56887.0,0.088289]
[1725986695750,0.087888,56888.0,56887.0,0.088289]
[1725986696949,0.088888,56888.0,56887.0,0.088289]
[1725986697645,0.090888,56888.0,56887.0,0.088289]
[1725986698248,0.088888,56888.0,56887.0,0.088289]
[1725986698555,0.087888,56888.0,56887.0,0.089289]
[1725986700651,0.917888,56888.0,56887.0,0.089289]
[1725986701349,0.087888,56888.0,56887.0,0.089289]
[1725986701550,0.08789748,56888.0,56887.0,0.2]
[1725986701752,0.13093725,56888.0,56887.0,1.503138]
[1725986702053,0.2688776,56888.0,56887.0,1.503138]
[1725986702242,0.13093725,56888.0,56887.0,1.415249]
[1725986702441,0.2688776,56888.0,56887.0,1.415249]
[1725986702641,0.23492755,56888.0,56887.0,0.815249]
[1725986702955,0.04303977,56888.0,56887.0,0.816249]
[1725986703154,0.09697891,56888.0,56887.0,0.816249]
[1725986703346,0.09697891,56888.0,56887.0,0.815249]
[1725986703652,0.09697891,56888.0,56887.0,0.904138]
[1725986703850,0.09697891,56888.0,56887.0,0.816249]
[1725986704360,0.28886669,56888.0,56887.0,0.816249]
[1725986704651,0.09697891,56888.0,56887.0,0.290889]
[1725986704851,0.18486591,56888.0,56887.0,0.090889]
[1725986705056,0.18486591,56888.0,56887.0,0.290889]
[1725986705455,0.09697891,56888.0,56887.0,0.289889]
[1725986705659,0.09697891,56888.0,56887.0,0.291889]
[1725986706151,0.09697891,56888.0,56887.0,0.290889]
[1725986706360,0.18486591,56888.0,56887.0,0.090889]
[1725986706842,0.18486591,56888.0,56887.0,0.088889]
[1725986707049,0.24790344,56888.0,56887.0,0.088889]
[1725986707346,0.47623723,56888.0,56887.0,0.088889]
[1725986707545,0.38835023,56888.0,56887.0,0.088889]
[1725986707755,0.38835023,56888.0,56887.0,0.2]
[1725986707954,0.38835023,56888.0,56887.0,0.287889]
[1725986707955,0.16001644,56888.0,56887.0,0.287889]
[1725986708459,0.16201644,56888.0,56887.0,0.287889]
[1725986708657,0.002,56888.0,56887.0,0.287889]
[1725986709154,0.002,56888.0,56887.0,0.288889]
[1725986709550,0.002,56888.0,56887.0,0.376778]
[1725986709859,0.002,56888.0,56887.0,0.288889]
[1725986710055,0.087879,56894.0,56887.0,0.288889]
[1725986710359,0.087879,56894.0,56893.0,0.0004]
[1725986710552,0.10641018,56894.0,56893.0,0.0004]
[1725986711861,0.10641018,56894.0,56893.0,0.088279]
[1725986712256,0.11241018,56894.0,56893.0,0.088279]
[1725986713357,0.11941018,56894.0,56893.0,0.089279]
[1725986714171,0.20728918,56894.0,56893.0,0.0014]
[1725986715754,0.11941018,56894.0,56893.0,0.0014]
[1725986715957,0.11941018,56894.0,56893.0,0.089279]
[1725986716552,0.12041018,56894.0,56893.0,0.089279]
[1725986716750,0.12141018,56894.0,56893.0,0.089279]
[1725986717666,0.11341018,56894.0,56893.0,0.088279]
[1725986717963,0.12141018,56894.0,56893.0,0.089279]
[1725986719463,0.11341018,56894.0,56893.0,0.088279]
[1725986719656,0.12141018,56894.0,56893.0,0.089279]
[1725986720963,0.12141018,56894.0,56885.0,0.05209954]
[1725986720964,0.32141018,56894.0,56885.0,0.05209954]
[1725986721154,0.087889,56888.0,56887.0,0.087888]
[1725986721565,0.0487,56893.0,56882.0,0.11846712]
[1725986721566,0.087882,56892.0,56884.0,0.13999254]
[1725986721762,0.088292,56885.0,56884.0,0.13999254]
[1725986722961,0.088292,56885.0,56884.0,0.14199254]
[1725986723467,0.088292,56885.0,56884.0,0.14299254]
[1725986723665,0.06566417,56887.0,56884.0,0.37180037]
[1725986723862,0.08789,56886.0,56885.0,0.28090737]
[1725986724262,0.06566417,56887.0,56885.0,0.28090737]
[1725986724464,0.06566417,56887.0,56884.0,0.21282668]
[1725986724465,0.15355317,56887.0,56886.0,0.28130737]
[1725986724769,0.15355317,56887.0,56886.0,0.23296997]
[1725986725169,0.44144217,56887.0,56886.0,0.12855341]
[1725986726259,0.44144217,56887.0,56886.0,0.21554424]
[1725986726260,1.56880217,56887.0,56886.0,0.21554424]
[1725986726468,1.65669117,56887.0,56886.0,0.0004]
[1725986726770,0.175786,56884.0,56883.0,0.08699083]
[1725986726955,0.17579,56883.0,56882.0,0.08699083]
[1725986727156,0.175792,56882.0,56881.0,0.08699083]
[1725986727358,0.087901,56879.0,56878.0,0.08699083]
[1725986727563,0.176202,56879.0,56878.0,0.21434412]
[1725986727759,0.087903,56878.0,56877.0,0.08699083]
[1725986727963,0.088303,56878.0,56877.0,0.21362994]
[1725986728162,0.087904,56877.0,56876.0,0.08699083]
[1725986728363,0.088304,56877.0,56876.0,0.08699083]
[1725986728861,0.176208,56877.0,56876.0,0.08699083]
[1725986729062,0.176208,56877.0,56872.0,0.10441656]
[1725986729063,0.088304,56877.0,56874.0,0.08699083]
[1725986729266,0.087912,56872.0,56871.0,0.08699083]
[1725986729568,0.087913,56871.0,56870.0,0.08699083]
[1725986729871,0.0004,56871.0,56870.0,0.30152962]
[1725986730073,0.0004,56871.0,56870.0,0.30146685]
[1725986731066,0.0004,56871.0,56870.0,0.17484306]
[1725986731267,0.0004,56871.0,56870.0,0.087915]
[1725986731666,0.0004,56871.0,56870.0,0.091915]
[1725986732059,0.0014,56871.0,56870.0,0.093915]
[1725986732773,0.0004,56871.0,56870.0,0.091915]
[1725986732972,0.0004,56871.0,56870.0,0.089915]
[1725986733271,0.0004,56871.0,56870.0,0.091915]
[1725986733478,0.0004,56871.0,56870.0,0.089915]
[1725986733670,0.0004,56871.0,56870.0,0.091915]
[1725986733976,0.0004,56871.0,56870.0,0.089915]
[1725986734166,0.0004,56871.0,56870.0,0.091915]
[1725986734868,0.0004,56871.0,56870.0,0.92070319]
[1725986735168,0.0004,56875.0,56874.0,0.287909]
[1725986735474,0.0004,56875.0,56874.0,0.41473413]
[1725986736074,0.0498,56876.0,56875.0,0.087907]
[1725986736272,0.0879,56880.0,56879.0,0.087901]
[1725986736573,0.0879,56880.0,56879.0,0.088301]
[1725986738267,0.0949,56880.0,56879.0,0.088301]
[1725986738677,0.0879,56880.0,56879.0,0.088301]
[1725986738873,0.0939,56880.0,56879.0,0.0004]
[1725986739074,0.1009,56880.0,56879.0,0.0014]
[1725986739463,0.0949,56880.0,56879.0,0.0014]
[1725986739771,0.1009,56880.0,56879.0,0.0014]
[1725986740460,0.1009,56880.0,56879.0,0.0004]
[1725986740665,0.1009,56880.0,56879.0,0.0014]
[1725986741065,0.1009,56880.0,56879.0,0.089301]
[1725986743873,0.3009,56880.0,56879.0,0.0014]
[1725986744072,0.300899,56880.0,56879.0,0.0014]
[1725986744765,0.388798,56880.0,56879.0,0.0014]
[1725986744971,1.516238,56880.0,56879.0,0.0014]
[1725986745370,1.517238,56880.0,56879.0,0.0014]
[1725986745579,1.518238,56880.0,56879.0,0.0014]
[1725986746376,1.563738,56880.0,56879.0,0.0014]
[1725986746670,1.651637,56880.0,56879.0,0.0004]
[1725986746873,1.563738,56880.0,56879.0,0.0014]
[1725986747274,1.556738,56880.0,56879.0,0.0014]
[1725986747583,1.563738,56880.0,56879.0,0.0014]
[1725986747879,1.556738,56880.0,56879.0,0.0014]
[1725986748078,1.563738,56880.0,56879.0,0.0014]
[1725986748581,0.956738,56880.0,56879.0,0.0004]
[1725986748889,0.964738,56880.0,56879.0,0.0014]
[1725986749473,0.965738,56880.0,56879.0,0.0014]
[1725986749982,0.438298,56880.0,56879.0,0.0014]
[1725986754074,0.438298,56880.0,56879.0,0.05350096]
[1725986754474,0.526197,56880.0,56879.0,0.0014]
[1725986754770,0.438298,56880.0,56879.0,0.0014]
[1725986754975,0.526197,56880.0,56879.0,0.0014]
[1725986755171,0.438298,56880.0,56879.0,0.0014]
[1725986755580,0.438298,56880.0,56879.0,0.05350096]
[1725986756781,0.438298,56880.0,56879.0,0.0014]
[1725986756973,0.438298,56880.0,56879.0,0.05373292]
[1725986757775,0.438298,56880.0,56879.0,0.0014]
[1725986759582,0.438298,56880.0,56879.0,0.05373111]
[1725986760286,0.104899,56880.0,56879.0,0.05373111]
[1725986760589,0.104899,56880.0,56879.0,0.0014]
[1725986761286,0.192798,56880.0,56879.0,0.0014]
[1725986761485,0.192798,56880.0,56879.0,0.0004]
[1725986761689,0.20131068,56880.0,56879.0,0.0014]
[1725986761991,0.21031068,56880.0,56879.0,0.0014]
[1725986762380,0.29820968,56880.0,56879.0,0.0014]
[1725986762692,0.21031068,56880.0,56879.0,0.0014]
[1725986763194,0.104899,56880.0,56879.0,0.0014]
[1725986763893,0.21029633,56880.0,56879.0,0.0014]
[1725986764188,0.29819533,56880.0,56879.0,0.0014]
[1725986764387,0.192798,56880.0,56879.0,0.0014]
[1725986764692,0.22775804,56880.0,56879.0,0.0014]
[1725986764885,0.21975804,56880.0,56879.0,0.0014]
[1725986765079,0.22875804,56880.0,56879.0,0.0014]
[1725986765986,0.175812,56876.0,56875.0,0.0004]
[1725986766193,0.376212,56876.0,56875.0,0.0004]
[1725986767092,0.087915,56870.0,56869.0,0.0451]
[1725986767588,0.088315,56870.0,56869.0,0.0451]
[1725986768380,0.091315,56870.0,56869.0,0.0451]
[1725986768792,0.091315,56870.0,56869.0,0.27627485]
[1725986769176,0.092315,56870.0,56869.0,0.27627485]
[1725986769376,0.092315,56870.0,56869.0,0.36419085]
[1725986769692,0.0044,56870.0,56869.0,0.25993593]
[1725986770686,0.18023,56870.0,56869.0,0.27664945]
[1725986770896,0.18023,56870.0,56863.0,0.17033368]
[1725986770897,0.087924,56864.0,56863.0,0.10462952]
[1725986771081,0.088324,56864.0,56863.0,0.12667615]
[1725986771977,0.04433168,56864.0,56863.0,0.12667615]
[1725986772393,0.04433168,56864.0,56863.0,0.12767615]
[1725986772693,0.06257101,56864.0,56863.0,0.12767615]
[1725986773292,0.06257101,56864.0,56863.0,0.23230567]
[1725986773791,0.06357101,56864.0,56863.0,0.23230567]
[1725986774585,0.06357101,56864.0,56863.0,0.12767615]
[1725986774988,0.15249501,56864.0,56863.0,0.12767615]
[1725986775399,0.15349501,56864.0,56863.0,0.12667615]
[1725986776792,0.175858,56861.0,56860.0,0.0543]
[1725986776994,0.17586,56860.0,56859.0,0.004]
[1725986777297,0.25328975,56860.0,56859.0,0.004]
[1725986777495,0.25288975,56860.0,56859.0,0.004]
[1725986778302,0.087946,56850.0,56849.0,0.1616]
[1725986778492,0.32271366,56850.0,56849.0,0.1616]
[1725986778686,0.12271366,56850.0,56849.0,0.1616]
[1725986779102,0.24552868,56853.0,56849.0,0.1616]
[1725986779300,0.087946,56850.0,56849.0,0.1616]
[1725986779602,0.087946,56850.0,56849.0,0.1624]
[1725986780187,0.19305411,56850.0,56849.0,0.1624]
[1725986780601,0.19405411,56850.0,56849.0,0.1734]
[1725986781102,0.089946,56850.0,56849.0,0.1744]
[1725986781298,0.10847911,56850.0,56849.0,0.1744]
[1725986781512,0.50153322,56850.0,56849.0,0.0682]
[1725986781701,0.39642511,56850.0,56849.0,0.0682]
[1725986782294,0.50143529,56850.0,56849.0,0.0682]
[1725986782696,0.39642511,56850.0,56849.0,0.0682]
[1725986782904,0.50143531,56850.0,56849.0,0.0682]
[1725986783707,0.02053311,56850.0,56849.0,0.0682]
[1725986783895,0.10847911,56850.0,56849.0,0.156147]
[1725986784096,0.02053311,56850.0,56849.0,0.156147]
[1725986785004,0.10847911,56850.0,56849.0,0.156147]
[1725986787206,0.10847911,56850.0,56849.0,0.0682]
[1725986792501,0.10847911,56850.0,56849.0,0.156147]
[1725986792502,0.02053311,56850.0,56849.0,0.156147]
[1725986793207,0.10847911,56850.0,56849.0,0.0682]
[1725986795203,0.19642511,56850.0,56849.0,0.0682]
[1725986795406,0.31924013,56850.0,56849.0,0.0682]
[1725986796003,0.2394989,56850.0,56849.0,0.0128]
[1725986796302,0.55372281,56850.0,56849.0,0.0128]
[1725986796497,0.65078688,56850.0,56849.0,0.0128]
[1725986796697,0.5967966,56850.0,56849.0,0.0128]
[1725986796900,0.4394989,56850.0,56849.0,0.0128]
[1725986798705,0.39642511,56850.0,56849.0,0.0128]
[1725986799902,0.39642511,56850.0,56849.0,0.08263521]
[1725986799903,0.48437111,56850.0,56849.0,0.08263521]
[1725986800301,0.48437111,56850.0,56849.0,0.0128]
[1725986801307,0.087949,56848.0,56843.0,0.05237147]
[1725986801508,0.088755,56844.0,56840.0,0.05237147]
[1725986801711,0.087961,56840.0,56839.0,0.05237147]
[1725986801912,0.175926,56839.0,56838.0,0.05237147]
[1725986802110,0.230926,56839.0,56838.0,0.05237147]
[1725986802409,0.230926,56839.0,56828.0,0.14398]
[1725986802410,0.175928,56838.0,56837.0,0.05237147]
[1725986802610,0.376728,56838.0,56837.0,0.05237147]
[1725986803218,0.175932,56837.0,56836.0,0.05237147]
[1725986803405,0.087968,56836.0,56835.0,0.05237147]
[1725986803716,0.087971,56834.0,56833.0,0.06983521]
[1725986804713,0.087971,56834.0,56830.0,0.08716141]
[1725986804910,0.2,56836.0,56833.0,0.06982401]
[1725986805114,0.088971,56834.0,56833.0,0.06982401]
[1725986805318,0.001,56834.0,56833.0,0.06980795]
[1725986805815,0.088971,56834.0,56833.0,0.06980795]
[1725986806804,0.087974,56832.0,56828.0,0.14398]
[1725986807106,0.0008,56829.0,56828.0,0.14398]
[1725986809014,0.0008,56829.0,56828.0,0.14698]
[1725986809818,0.0018,56829.0,56828.0,0.14698]
[1725986811716,0.08797,56835.0,56828.0,1.2749]
[1725986812020,0.08797,56835.0,56834.0,0.287968]
[1725986812211,0.08797,56835.0,56834.0,0.087968]
[1725986813620,0.087978,56829.0,56828.0,0.0568]
[1725986813918,0.0008,56829.0,56828.0,0.36245664]
[1725986814119,0.0008,56829.0,56828.0,0.14778]
[1725986814621,0.088778,56829.0,56828.0,0.0598]
[1725986815220,0.089778,56829.0,56828.0,0.0598]
[1725986815922,0.089778,56829.0,56828.0,0.0568]
[1725986817113,0.04575883,56829.0,56828.0,0.0568]
[1725986818023,0.04675883,56829.0,56828.0,0.0608]
[1725986819312,0.04675883,56829.0,56828.0,0.14878]
[1725986819516,0.002,56829.0,56828.0,0.14878]
[1725986820023,0.002,56829.0,56828.0,1.45184141]
[1725986820517,0.002,56829.0,56828.0,0.89072744]
[1725986820714,0.002,56829.0,56828.0,0.76386141]
[1725986820915,0.002,56829.0,56828.0,0.80351746]
[1725986822722,0.002,56829.0,56828.0,0.803397]
[1725986823227,0.089978,56829.0,56828.0,0.0608]
[1725986823520,0.089978,56829.0,56828.0,0.14878]
[1725986823719,0.002,56829.0,56828.0,0.14878]
[1725986823915,0.002,56829.0,56828.0,1.2767]
[1725986824227,0.089978,56829.0,56828.0,0.0048]
[1725986824414,0.089978,56829.0,56828.0,0.07457807]
[1725986824815,0.089978,56829.0,56828.0,0.0048]
[1725986825816,0.089978,56829.0,56828.0,0.09278]
[1725986826720,0.177956,56829.0,56828.0,0.0048]
[1725986826912,0.232156,56829.0,56828.0,0.0048]
[1725986827316,0.25077633,56829.0,56828.0,0.0048]
[1725986828126,0.16279833,56829.0,56828.0,0.0048]
[1725986829828,0.28582757,56829.0,56828.0,0.0048]
[1725986830220,0.20588914,56829.0,56828.0,0.0048]
[1725986832624,0.16279833,56829.0,56828.0,0.0048]
[1725986832818,0.16279833,56829.0,56828.0,0.09278]
[1725986833021,0.10859833,56829.0,56828.0,0.09278]
[1725986833221,0.002,56829.0,56828.0,0.09278]
[1725986833731,0.002,56829.0,56828.0,0.18076]
[1725986833926,0.12307569,56837.0,56831.0,0.087975]
[1725986834120,0.12307569,56838.0,56836.0,0.2]
[1725986834320,0.01860048,56839.0,56836.0,0.2]
[1725986834321,0.03398112,56837.0,56836.0,0.2]
[1725986834833,0.03398112,56837.0,56836.0,0.287968]
[1725986835023,0.03398112,56837.0,56836.0,0.087968]
[1725986835530,0.03498112,56837.0,56836.0,0.287968]
[1725986835723,0.002,56837.0,56836.0,0.903776]
[1725986835918,0.002,56837.0,56836.0,1.503776]
[1725986836126,0.22821865,56849.0,56845.0,0.087954]
[1725986836127,0.12307569,56846.0,56845.0,0.087954]
[1725986836429,0.2424565,56849.0,56845.0,0.12594887]
[1725986836619,0.1545085,56849.0,56848.0,0.15772364]
[1725986836819,0.01833785,56849.0,56848.0,0.087949]
[1725986837029,0.087944,56852.0,56847.0,0.08726238]
[1725986837234,0.087944,56852.0,56850.0,0.087945]
[1725986837426,0.087944,56852.0,56851.0,0.087944]
[1725986837819,0.01859332,56855.0,56849.0,0.2]
[1725986838026,0.00104001,56858.0,56854.0,0.08794]
[1725986838224,0.087933,56859.0,56855.0,0.087937]
[1725986838435,0.087933,56859.0,56853.0,0.28726238]
[1725986838436,0.087933,56859.0,56857.0,0.06966448]
[1725986838741,0.087933,56859.0,56856.0,0.06966448]
[1725986838935,0.10629882,56859.0,56856.0,0.06966448]
[1725986839132,0.10629882,56859.0,56857.0,0.06966448]
[1725986839329,0.01836582,56859.0,56858.0,0.087933]
[1725986839529,0.143628,56862.0,56858.0,0.14008581]
[1725986839733,0.01,56859.0,56858.0,0.14008581]
[1725986840424,0.143628,56862.0,56858.0,0.14008581]
[1725986840624,0.07412736,56862.0,56861.0,0.087929]
[1725986840931,0.01842736,56862.0,56861.0,0.087929]
[1725986841131,0.2549,56866.0,56861.0,0.087929]
[1725986841834,0.013,56862.0,56858.0,0.001]
[1725986842033,0.0008,56859.0,56858.0,0.001]
[1725986842732,0.0008,56859.0,56858.0,0.087933]
[1725986843626,0.0118,56859.0,56858.0,0.088933]
[1725986843827,0.2,56863.0,56860.0,0.08793]
[1725986844936,0.087932,56859.0,56858.0,0.001]
[1725986845129,0.287932,56859.0,56858.0,0.001]
[1725986845333,0.087934,56858.0,56854.0,0.087938]
[1725986845637,0.2008,56859.0,56848.0,0.0186581]
[1725986845830,0.059,56857.0,56856.0,0.087937]
[1725986847130,0.068,56857.0,56856.0,0.088937]
[1725986847940,0.009,56857.0,56856.0,0.288937]
[1725986848341,0.016,56857.0,56856.0,0.288937]
[1725986851533,0.016,56857.0,56856.0,0.289337]
[1725986851935,0.016,56857.0,56856.0,0.089337]
[1725986852134,0.1379052,56857.0,56856.0,0.089337]
[1725986852438,0.0499702,56857.0,56856.0,0.089337]
[1725986854438,0.04996976,56857.0,56856.0,0.089337]
[1725986856740,0.22583976,56857.0,56856.0,0.0014]
[1725986856937,0.18097363,56857.0,56856.0,0.0014]
[1725986857156,0.32163247,56857.0,56856.0,0.0014]
[1725986857647,0.18097363,56857.0,56856.0,0.0014]
[1725986858435,0.24374648,56857.0,56856.0,0.0014]
[1725986858640,0.18097363,56857.0,56856.0,0.0014]
[1725986859351,0.103935,56857.0,56856.0,0.0014]
[1725986860246,0.103935,56857.0,56856.0,0.089337]
[1725986860247,0.016,56857.0,56856.0,0.089337]
[1725986861053,0.103935,56857.0,56856.0,0.089337]
[1725986861836,0.05993651,56857.0,56856.0,0.089337]
[1725986863647,0.05993651,56857.0,56856.0,0.15900148]
[1725986864653,0.14787151,56857.0,56856.0,0.0014]
[1725986864857,1.36344651,56857.0,56856.0,0.0014]
[1725986865047,0.83580651,56857.0,56856.0,0.0014]
[1725986865249,0.05993651,56857.0,56856.0,0.089337]
[1725986865547,0.1073901,56859.0,56858.0,0.087933]
[1725986865745,0.1073901,56859.0,56856.0,0.2014]
[1725986865746,0.087935,56857.0,56856.0,0.0014]
[1725986865945,0.088335,56857.0,56856.0,0.001]
[1725986866449,0.21935439,56857.0,56856.0,0.088937]
[1725986866657,0.21935439,56857.0,56856.0,0.087937]
[1725986867457,0.087937,56856.0,56855.0,0.0547]